[Event "Live Chess"]
[Site "Chess.com"]
[Date "2024.06.02"]
[Round "-"]
[White "GEMdzq"]
[Black "vincents82"]
[Result "1-0"]
[WhiteElo "2298"]
[BlackElo "2029"]
[TimeControl "300"]
[EndTime "16:31:14 PDT"]
[Termination "GEMdzq won by resignation"]

1. e4 {[%clk 0:04:57.3]} 1... d5 {[%clk 0:04:55.2]} 2. exd5 {[%clk 0:04:55.8]}
2... Qxd5 {[%clk 0:04:54.2]} 3. Nc3 {[%clk 0:04:55.4]} 3... Qd8 {[%clk
0:04:53.4]} 4. d4 {[%clk 0:04:55]} 4... Nf6 {[%clk 0:04:52.5]} 5. Bc4 {[%clk
0:04:54.6]} 5... a6 {[%clk 0:04:50.2]} 6. Nf3 {[%clk 0:04:54]} 6... b5 {[%clk
0:04:49]} 7. Bb3 {[%clk 0:04:51.5]} 7... c5 {[%clk 0:04:48.5]} 8. dxc5 {[%clk
0:04:49.1]} 8... Qxd1+ {[%clk 0:04:48.1]} 9. Kxd1 {[%clk 0:04:48.5]} 9... e6
{[%clk 0:04:47.7]} 10. Bf4 {[%clk 0:04:45.6]} 10... Bb7 {[%clk 0:04:47.3]} 11.
Re1 {[%clk 0:04:39.9]} 11... Bxc5 {[%clk 0:04:44.5]} 12. Ke2 {[%clk 0:04:29.6]}
12... Nbd7 {[%clk 0:04:41.4]} 13. Kf1 {[%clk 0:04:28.5]} 13... O-O {[%clk
0:04:39.4]} 14. h3 {[%clk 0:04:27.7]} 14... Bb4 {[%clk 0:04:33.9]} 15. Red1
{[%clk 0:04:22.1]} 15... Bxc3 {[%clk 0:04:31]} 16. bxc3 {[%clk 0:04:22]} 16...
Bxf3 {[%clk 0:04:29.8]} 17. gxf3 {[%clk 0:04:20.8]} 17... Rac8 {[%clk 0:04:28]}
18. a4 {[%clk 0:04:14.9]} 18... Rxc3 {[%clk 0:04:24]} 19. axb5 {[%clk
0:04:13.9]} 19... axb5 {[%clk 0:04:23.4]} 20. Ke2 {[%clk 0:04:09.2]} 20... Nb6
{[%clk 0:04:13.8]} 21. Be5 {[%clk 0:04:07.1]} 21... Rc6 {[%clk 0:04:06.9]} 22.
Ra6 {[%clk 0:04:03.3]} 22... Ra8 {[%clk 0:04:00]} 23. Rda1 {[%clk 0:04:00.4]}
23... Rxa6 {[%clk 0:03:50.6]} 24. Rxa6 {[%clk 0:04:00.3]} 24... Nfd7 {[%clk
0:03:49.5]} 25. Bd4 {[%clk 0:03:56.5]} 25... Rd6 {[%clk 0:03:46.8]} 26. c3
{[%clk 0:03:45.3]} 26... Kf8 {[%clk 0:03:34.3]} 27. Bc2 {[%clk 0:03:42.5]} 27...
e5 {[%clk 0:03:30.7]} 28. Be3 {[%clk 0:03:40.7]} 28... g6 {[%clk 0:03:19.8]} 29.
Bd3 {[%clk 0:03:39.7]} 29... Nc8 {[%clk 0:03:10.7]} 30. Ra8 {[%clk 0:03:36.7]}
30... Nb6 {[%clk 0:03:06.5]} 31. Bxb6 {[%clk 0:03:34.9]} 31... Rxb6 {[%clk
0:03:03.8]} 32. Rxc8+ {[%clk 0:03:34.3]} 1-0

[Event "Live Chess"]
[Site "Chess.com"]
[Date "2024.06.02"]
[Round "-"]
[White "NebodarMatevich"]
[Black "EPotapov05"]
[Result "0-1"]
[WhiteElo "1565"]
[BlackElo "1798"]
[TimeControl "300"]
[EndTime "16:31:22 PDT"]
[Termination "EPotapov05 won by resignation"]

1. e4 {[%clk 0:04:48.3]} 1... e6 {[%clk 0:04:58.7]} 2. b3 {[%clk 0:04:47.3]}
2... d5 {[%clk 0:04:57.4]} 3. Bb2 {[%clk 0:04:46.9]} 3... dxe4 {[%clk
0:04:56.5]} 4. Nc3 {[%clk 0:04:46.5]} 4... Nf6 {[%clk 0:04:54.1]} 5. Qe2 {[%clk
0:04:46.1]} 5... b6 {[%clk 0:04:50.3]} 6. O-O-O {[%clk 0:04:45.6]} 6... Bb7
{[%clk 0:04:49]} 7. d3 {[%clk 0:04:41.2]} 7... exd3 {[%clk 0:04:47.3]} 8. Rxd3
{[%clk 0:04:40.3]} 8... Nbd7 {[%clk 0:04:41.7]} 9. f3 {[%clk 0:04:34.4]} 9...
Bd6 {[%clk 0:04:39.8]} 10. Ne4 {[%clk 0:04:31.1]} 10... Nxe4 {[%clk 0:04:37.8]}
11. fxe4 {[%clk 0:04:29.9]} 11... Qe7 {[%clk 0:04:33.5]} 12. Bxg7 {[%clk
0:04:26.7]} 12... Rg8 {[%clk 0:04:27.9]} 13. Bh6 {[%clk 0:04:23.4]} 13... O-O-O
{[%clk 0:04:22.4]} 14. Nf3 {[%clk 0:04:22]} 14... Rg6 {[%clk 0:04:12.2]} 15. Bd2
{[%clk 0:04:05.6]} 15... Ba3+ {[%clk 0:03:59.8]} 16. Kb1 {[%clk 0:04:04.4]}
16... Nc5 {[%clk 0:03:56]} 17. Rxd8+ {[%clk 0:04:01.9]} 17... Qxd8 {[%clk
0:03:54.3]} 18. Bc3 {[%clk 0:03:48.1]} 18... Nxe4 {[%clk 0:03:47.3]} 19. Ba1
{[%clk 0:03:44.7]} 19... Rg8 {[%clk 0:03:11.6]} 20. Ne5 {[%clk 0:03:43]} 20...
Qe7 {[%clk 0:02:49.2]} 21. Qe3 {[%clk 0:03:40.2]} 21... f6 {[%clk 0:02:41.4]}
22. Nc4 {[%clk 0:03:34.2]} 22... Bc5 {[%clk 0:02:39.4]} 23. Qh3 {[%clk
0:03:17.9]} 23... Nf2 {[%clk 0:02:36]} 0-1

[Event "Live Chess"]
[Site "Chess.com"]
[Date "2024.06.02"]
[Round "-"]
[White "Cruiseylee78"]
[Black "Outspanner"]
[Result "0-1"]
[WhiteElo "1687"]
[BlackElo "1565"]
[TimeControl "300"]
[EndTime "16:31:35 PDT"]
[Termination "Outspanner won by resignation"]

1. d4 {[%clk 0:04:57.8]} 1... Nf6 {[%clk 0:04:57.8]} 2. Bf4 {[%clk 0:04:57.6]}
2... c5 {[%clk 0:04:54.8]} 3. e3 {[%clk 0:04:57.1]} 3... Qb6 {[%clk 0:04:53]} 4.
b3 {[%clk 0:04:55.3]} 4... cxd4 {[%clk 0:04:36]} 5. exd4 {[%clk 0:04:55.2]} 5...
g6 {[%clk 0:04:35.3]} 6. Nf3 {[%clk 0:04:53.7]} 6... Bg7 {[%clk 0:04:34.4]} 7.
Bd3 {[%clk 0:04:53]} 7... O-O {[%clk 0:04:32.9]} 8. Nbd2 {[%clk 0:04:52.5]} 8...
Nc6 {[%clk 0:04:31.1]} 9. c3 {[%clk 0:04:51.7]} 9... d6 {[%clk 0:04:25.5]} 10.
Qc2 {[%clk 0:04:49.7]} 10... Bg4 {[%clk 0:04:16.6]} 11. h3 {[%clk 0:04:48]}
11... Bxf3 {[%clk 0:04:12.7]} 12. Nxf3 {[%clk 0:04:47.9]} 12... e5 {[%clk
0:04:03.2]} 13. dxe5 {[%clk 0:04:45.8]} 13... dxe5 {[%clk 0:04:02.6]} 14. Bg5
{[%clk 0:04:42.6]} 14... e4 {[%clk 0:03:52]} 15. Bxf6 {[%clk 0:04:37.5]} 15...
exd3 {[%clk 0:03:51.1]} 16. Qxd3 {[%clk 0:04:35.8]} 16... Bxf6 {[%clk
0:03:49.4]} 17. h4 {[%clk 0:04:32.3]} 17... Rfe8+ {[%clk 0:03:43]} 18. Kd2
{[%clk 0:04:30.4]} 18... Qxf2+ {[%clk 0:03:39.6]} 19. Kc1 {[%clk 0:04:26]} 19...
Re3 {[%clk 0:03:26.1]} 20. Rf1 {[%clk 0:04:17.5]} 20... Rxd3 {[%clk 0:03:05.7]}
21. Rxf2 {[%clk 0:04:11.2]} 21... Rxc3+ {[%clk 0:03:05.1]} 22. Kb2 {[%clk
0:04:10.3]} 22... Re3+ {[%clk 0:02:57.1]} 23. Kb1 {[%clk 0:03:19.5]} 23... Rd8
{[%clk 0:02:47.9]} 24. Kc1 {[%clk 0:03:15.4]} 24... Bxa1 {[%clk 0:02:45.2]} 25.
Rd2 {[%clk 0:03:11.1]} 25... Rxd2 {[%clk 0:02:37.3]} 26. Kxd2 {[%clk 0:03:11]}
26... Re7 {[%clk 0:02:22.4]} 27. Ng5 {[%clk 0:03:04.4]} 27... h6 {[%clk
0:02:16.3]} 28. Nf3 {[%clk 0:02:59.8]} 28... f5 {[%clk 0:02:14.1]} 29. Ng1
{[%clk 0:02:54.7]} 29... g5 {[%clk 0:02:11.1]} 30. hxg5 {[%clk 0:02:49.5]} 30...
hxg5 {[%clk 0:02:11]} 31. b4 {[%clk 0:02:46.3]} 31... Nxb4 {[%clk 0:02:09]} 32.
a4 {[%clk 0:02:42.9]} 32... g4 {[%clk 0:02:01.3]} 33. Ne2 {[%clk 0:02:38.3]}
33... a6 {[%clk 0:01:55.8]} 34. Ng3 {[%clk 0:02:33.6]} 34... Re5 {[%clk
0:01:53]} 35. Ne2 {[%clk 0:02:29.4]} 35... b5 {[%clk 0:01:51.3]} 36. axb5 {[%clk
0:02:25.4]} 36... axb5 {[%clk 0:01:51]} 37. Nf4 {[%clk 0:02:21.4]} 37... Kf7
{[%clk 0:01:42.6]} 38. g3 {[%clk 0:02:15.7]} 38... Rc5 {[%clk 0:01:40.6]} 39.
Ke1 {[%clk 0:02:08.7]} 39... Be5 {[%clk 0:01:38.5]} 40. Ne2 {[%clk 0:02:04.1]}
40... Nd3+ {[%clk 0:01:37.2]} 41. Kd2 {[%clk 0:02:00.4]} 41... b4 {[%clk
0:01:35.7]} 42. Nf4 {[%clk 0:01:55.2]} 42... Bxf4+ {[%clk 0:01:33.3]} 43. gxf4
{[%clk 0:01:52.2]} 43... b3 {[%clk 0:01:32.5]} 0-1

[Event "Live Chess"]
[Site "Chess.com"]
[Date "2024.06.02"]
[Round "-"]
[White "IgorSchukin"]
[Black "dmitro74"]
[Result "0-1"]
[WhiteElo "1736"]
[BlackElo "1718"]
[TimeControl "300"]
[EndTime "16:31:37 PDT"]
[Termination "dmitro74 won by resignation"]

1. e4 {[%clk 0:04:58]} 1... e6 {[%clk 0:04:59.1]} 2. Nf3 {[%clk 0:04:56.7]} 2...
d5 {[%clk 0:04:58.4]} 3. Nc3 {[%clk 0:04:55.9]} 3... d4 {[%clk 0:04:56.2]} 4.
Ne2 {[%clk 0:04:54.7]} 4... c5 {[%clk 0:04:54.7]} 5. d3 {[%clk 0:04:53.8]} 5...
Nc6 {[%clk 0:04:53.5]} 6. Ng3 {[%clk 0:04:53.4]} 6... e5 {[%clk 0:04:51.1]} 7.
Be2 {[%clk 0:04:53]} 7... Nf6 {[%clk 0:04:48.8]} 8. h3 {[%clk 0:04:52.2]} 8...
Be6 {[%clk 0:04:43.3]} 9. O-O {[%clk 0:04:51]} 9... Be7 {[%clk 0:04:38.9]} 10.
Nh2 {[%clk 0:04:49.5]} 10... b5 {[%clk 0:04:36]} 11. f4 {[%clk 0:04:48.3]} 11...
exf4 {[%clk 0:04:29.2]} 12. Bxf4 {[%clk 0:04:46.9]} 12... Bd6 {[%clk 0:04:27.4]}
13. Bxd6 {[%clk 0:04:43.6]} 13... Qxd6 {[%clk 0:04:26.2]} 14. Nf5 {[%clk
0:04:41.8]} 14... Bxf5 {[%clk 0:04:15.9]} 15. Rxf5 {[%clk 0:04:39.9]} 15... O-O
{[%clk 0:03:57.2]} 16. e5 {[%clk 0:04:33.9]} 16... Nxe5 {[%clk 0:03:55.1]} 17.
Bf3 {[%clk 0:04:24.2]} 17... Rae8 {[%clk 0:03:50.3]} 18. Ng4 {[%clk 0:04:19.3]}
18... Nfxg4 {[%clk 0:03:39.4]} 19. Bxg4 {[%clk 0:04:15.9]} 19... Nxg4 {[%clk
0:03:35.2]} 20. Qxg4 {[%clk 0:04:12.4]} 20... g6 {[%clk 0:03:33.5]} 21. Rf2
{[%clk 0:04:05.2]} 21... f5 {[%clk 0:03:28.5]} 22. Qf3 {[%clk 0:03:57.7]} 22...
Re3 {[%clk 0:03:16.6]} 23. Qf4 {[%clk 0:03:55.9]} 23... Qxf4 {[%clk 0:03:10.2]}
24. Rxf4 {[%clk 0:03:54.5]} 24... Rfe8 {[%clk 0:03:09.1]} 25. a4 {[%clk
0:03:40.4]} 25... Re1+ {[%clk 0:03:06]} 26. Rf1 {[%clk 0:03:37.8]} 26... Rxa1
{[%clk 0:02:55.8]} 27. Rxa1 {[%clk 0:03:35.8]} 27... b4 {[%clk 0:02:53.6]} 28.
Rc1 {[%clk 0:03:30.5]} 28... a5 {[%clk 0:02:46.1]} 29. c3 {[%clk 0:03:28.1]}
29... dxc3 {[%clk 0:02:36.1]} 30. bxc3 {[%clk 0:03:26]} 30... Re2 {[%clk
0:02:28.4]} 31. cxb4 {[%clk 0:03:23.9]} 31... cxb4 {[%clk 0:02:27]} 32. Rc5
{[%clk 0:03:21.4]} 32... b3 {[%clk 0:02:20.2]} 33. Kf1 {[%clk 0:03:18]} 33...
Ra2 {[%clk 0:02:12.7]} 34. Rb5 {[%clk 0:03:11.4]} 34... b2 {[%clk 0:02:08.1]}
35. d4 {[%clk 0:03:05.5]} 35... Ra1+ {[%clk 0:02:05.4]} 36. Ke2 {[%clk
0:03:03.8]} 36... b1=Q {[%clk 0:02:03.7]} 0-1

[Event "Live Chess"]
[Site "Chess.com"]
[Date "2024.06.02"]
[Round "-"]
[White "CheckThis4"]
[Black "Crowded_House"]
[Result "1-0"]
[WhiteElo "2690"]
[BlackElo "1727"]
[TimeControl "300"]
[EndTime "16:31:43 PDT"]
[Termination "CheckThis4 won by resignation"]

1. d4 {[%clk 0:04:58.1]} 1... e6 {[%clk 0:04:58.2]} 2. Nc3 {[%clk 0:04:58]} 2...
d5 {[%clk 0:04:57]} 3. e4 {[%clk 0:04:57.6]} 3... dxe4 {[%clk 0:04:55.1]} 4.
Nxe4 {[%clk 0:04:54.2]} 4... Bd7 {[%clk 0:04:54.4]} 5. Nf3 {[%clk 0:04:37.9]}
5... Bc6 {[%clk 0:04:52.7]} 6. Neg5 {[%clk 0:04:36.5]} 6... h6 {[%clk
0:04:42.5]} 7. Nxe6 {[%clk 0:04:29]} 7... fxe6 {[%clk 0:04:39]} 8. Bd3 {[%clk
0:04:27.9]} 8... Qf6 {[%clk 0:04:29.8]} 9. Ne5 {[%clk 0:04:26.1]} 9... Bxg2
{[%clk 0:04:09.3]} 10. Rg1 {[%clk 0:04:21.2]} 10... Bc6 {[%clk 0:04:05.7]} 11.
Qh5+ {[%clk 0:04:17.7]} 11... Ke7 {[%clk 0:03:59]} 12. Ng6+ {[%clk 0:04:14.3]}
12... Kd7 {[%clk 0:03:51.6]} 13. Nxh8 {[%clk 0:04:12.9]} 13... Bf3 {[%clk
0:03:42]} 14. Qf7+ {[%clk 0:04:03]} 14... Qxf7 {[%clk 0:03:40.4]} 15. Nxf7
{[%clk 0:04:02.9]} 15... Nc6 {[%clk 0:03:34.5]} 16. Bb5 {[%clk 0:03:58.3]} 16...
a6 {[%clk 0:03:32.2]} 17. Ne5+ {[%clk 0:03:56.8]} 17... Kd6 {[%clk 0:03:25.2]}
18. Bxc6 {[%clk 0:03:24.3]} 18... bxc6 {[%clk 0:03:23.4]} 19. Nxf3 {[%clk
0:03:22.6]} 19... Nf6 {[%clk 0:03:15.1]} 20. Bf4+ {[%clk 0:03:19.4]} 20... Kd7
{[%clk 0:03:11.8]} 21. Ne5+ {[%clk 0:03:18]} 21... Kd6 {[%clk 0:03:04]} 22. c4
{[%clk 0:03:13.5]} 22... Nh5 {[%clk 0:02:52.4]} 23. Be3 {[%clk 0:03:10.3]} 23...
Nf6 {[%clk 0:02:46.7]} 24. O-O-O {[%clk 0:03:06.1]} 24... Nd7 {[%clk 0:02:40.4]}
25. c5+ {[%clk 0:02:58.5]} 25... Kd5 {[%clk 0:02:36.2]} 26. Nxd7 {[%clk
0:02:55.3]} 1-0

[Event "Live Chess"]
[Site "Chess.com"]
[Date "2024.06.02"]
[Round "-"]
[White "Yegorych"]
[Black "Rusty_Bridges"]
[Result "0-1"]
[WhiteElo "1508"]
[BlackElo "1479"]
[TimeControl "300"]
[EndTime "16:31:51 PDT"]
[Termination "Rusty_Bridges won on time"]

1. d4 {[%clk 0:04:56.5]} 1... d5 {[%clk 0:04:58.3]} 2. c4 {[%clk 0:04:54.5]}
2... e6 {[%clk 0:04:55.8]} 3. Nc3 {[%clk 0:04:51.6]} 3... Bb4 {[%clk 0:04:53]}
4. a3 {[%clk 0:04:46.4]} 4... Bxc3+ {[%clk 0:04:51.1]} 5. bxc3 {[%clk
0:04:46.3]} 5... c6 {[%clk 0:04:43]} 6. Nf3 {[%clk 0:04:36.2]} 6... Nd7 {[%clk
0:04:40.5]} 7. e3 {[%clk 0:04:30.8]} 7... Ngf6 {[%clk 0:04:38.8]} 8. a4 {[%clk
0:04:24.7]} 8... Ne4 {[%clk 0:04:34.7]} 9. Qc2 {[%clk 0:04:20.8]} 9... Qf6
{[%clk 0:04:32]} 10. Ba3 {[%clk 0:04:10.3]} 10... b6 {[%clk 0:04:25.9]} 11. Bd3
{[%clk 0:04:02.9]} 11... Ng5 {[%clk 0:04:19.2]} 12. Nxg5 {[%clk 0:03:57.9]}
12... Qxg5 {[%clk 0:04:17.6]} 13. O-O {[%clk 0:03:50.5]} 13... Bb7 {[%clk
0:04:11.5]} 14. Bd6 {[%clk 0:03:41.1]} 14... h5 {[%clk 0:04:03.9]} 15. a5 {[%clk
0:03:32.4]} 15... h4 {[%clk 0:03:52.3]} 16. h3 {[%clk 0:03:30.2]} 16... f5
{[%clk 0:03:32.3]} 17. Rfb1 {[%clk 0:03:00.1]} 17... Qd8 {[%clk 0:03:26.3]} 18.
Bf4 {[%clk 0:02:40]} 18... g5 {[%clk 0:03:22.6]} 19. Bh2 {[%clk 0:02:30.7]}
19... Ke7 {[%clk 0:02:51.5]} 20. cxd5 {[%clk 0:02:16.5]} 20... cxd5 {[%clk
0:02:45.8]} 21. Bxf5 {[%clk 0:02:10.9]} 21... exf5 {[%clk 0:02:36.4]} 22. Qxf5
{[%clk 0:02:10.8]} 22... Qf8 {[%clk 0:02:28.2]} 23. Qxg5+ {[%clk 0:02:04.9]}
23... Qf6 {[%clk 0:02:25.4]} 24. Bd6+ {[%clk 0:01:44.3]} 24... Kxd6 {[%clk
0:02:20.7]} 25. Qg4 {[%clk 0:01:39.2]} 25... Rag8 {[%clk 0:02:12.8]} 26. Qf4+
{[%clk 0:01:24.2]} 26... Qxf4 {[%clk 0:02:10.4]} 27. exf4 {[%clk 0:01:24.1]}
27... Rf8 {[%clk 0:02:04]} 28. axb6 {[%clk 0:01:20.4]} 28... axb6 {[%clk
0:02:01.1]} 29. Ra7 {[%clk 0:01:17.4]} 29... Kc7 {[%clk 0:01:59.6]} 30. Rb5
{[%clk 0:01:02]} 30... Rxf4 {[%clk 0:01:44.8]} 31. Ra2 {[%clk 0:00:47.3]} 31...
Rg8 {[%clk 0:01:29.9]} 32. Re2 {[%clk 0:00:38.7]} 32... Rf7 {[%clk 0:01:26.3]}
33. Rbb2 {[%clk 0:00:34.9]} 33... Rfg7 {[%clk 0:01:24.1]} 34. f3 {[%clk
0:00:32.2]} 34... Rg3 {[%clk 0:01:20.1]} 35. Rbc2 {[%clk 0:00:27.6]} 35... Rxh3
{[%clk 0:01:15.3]} 36. c4 {[%clk 0:00:21.9]} 36... Rxf3 {[%clk 0:01:09.9]} 37.
cxd5+ {[%clk 0:00:19.1]} 37... Kb8 {[%clk 0:01:04.8]} 38. Rb2 {[%clk 0:00:16.3]}
38... h3 {[%clk 0:00:53]} 39. Kh1 {[%clk 0:00:12]} 39... hxg2+ {[%clk
0:00:50.2]} 40. Rxg2 {[%clk 0:00:10.3]} 40... Rxg2 {[%clk 0:00:48.8]} 41. Rxg2
{[%clk 0:00:10.1]} 41... Bxd5 {[%clk 0:00:43.5]} 42. Rg8+ {[%clk 0:00:07.4]}
42... Kc7 {[%clk 0:00:41.8]} 43. Rg7 {[%clk 0:00:03.4]} 43... Rf7+ {[%clk
0:00:39.1]} 0-1

[Event "Live Chess"]
[Site "Chess.com"]
[Date "2024.06.02"]
[Round "-"]
[White "Queensandpawns"]
[Black "KeithArkell"]
[Result "0-1"]
[WhiteElo "2313"]
[BlackElo "2411"]
[TimeControl "300"]
[EndTime "16:32:03 PDT"]
[Termination "KeithArkell won by resignation"]

1. e4 {[%clk 0:04:57.2]} 1... c6 {[%clk 0:04:58.2]} 2. d4 {[%clk 0:04:56.6]}
2... d5 {[%clk 0:04:57.6]} 3. Nc3 {[%clk 0:04:56.3]} 3... g6 {[%clk 0:04:56]} 4.
h4 {[%clk 0:04:54.4]} 4... h5 {[%clk 0:04:54.7]} 5. e5 {[%clk 0:04:53.1]} 5...
Bf5 {[%clk 0:04:51.2]} 6. Nf3 {[%clk 0:04:53]} 6... e6 {[%clk 0:04:49.1]} 7. Bd3
{[%clk 0:04:52.5]} 7... Bxd3 {[%clk 0:04:47.5]} 8. Qxd3 {[%clk 0:04:52.4]} 8...
Nh6 {[%clk 0:04:45.3]} 9. Ng5 {[%clk 0:04:51.8]} 9... Nf5 {[%clk 0:04:43.2]} 10.
f3 {[%clk 0:04:49.9]} 10... Qb6 {[%clk 0:04:40.4]} 11. Ne2 {[%clk 0:04:19.5]}
11... Na6 {[%clk 0:04:34.4]} 12. g4 {[%clk 0:04:16.1]} 12... Nb4 {[%clk
0:04:30.1]} 13. Qb3 {[%clk 0:04:11.5]} 13... hxg4 {[%clk 0:04:27.1]} 14. fxg4
{[%clk 0:04:11.4]} 14... Nxd4 {[%clk 0:04:24.1]} 15. Nxd4 {[%clk 0:03:56.4]}
15... Qxd4 {[%clk 0:04:24]} 16. Qf3 {[%clk 0:03:48.7]} 16... Qxe5+ {[%clk
0:04:18.7]} 17. Be3 {[%clk 0:03:44.8]} 17... Nxc2+ {[%clk 0:04:16.6]} 18. Kf2
{[%clk 0:03:42.5]} 18... Qxe3+ {[%clk 0:04:15.7]} 19. Qxe3 {[%clk 0:03:41.6]}
19... Nxe3 {[%clk 0:04:15.1]} 20. Kxe3 {[%clk 0:03:41.5]} 20... Be7 {[%clk
0:04:14.7]} 21. Kf4 {[%clk 0:03:39.9]} 21... Kd7 {[%clk 0:04:09.5]} 22. Raf1
{[%clk 0:03:36.1]} 22... Raf8 {[%clk 0:04:08]} 0-1

[Event "Live Chess"]
[Site "Chess.com"]
[Date "2024.06.02"]
[Round "-"]
[White "Frankie_Badacsonyi"]
[Black "AlexanderMatlak"]
[Result "0-1"]
[WhiteElo "2435"]
[BlackElo "2402"]
[TimeControl "300"]
[EndTime "16:32:08 PDT"]
[Termination "AlexanderMatlak won by resignation"]

1. d4 {[%clk 0:04:58.5]} 1... Nf6 {[%clk 0:04:58.1]} 2. c4 {[%clk 0:04:57.9]}
2... c5 {[%clk 0:04:56.6]} 3. Nf3 {[%clk 0:04:55.7]} 3... cxd4 {[%clk
0:04:54.9]} 4. Nxd4 {[%clk 0:04:55.6]} 4... b6 {[%clk 0:04:54.4]} 5. Nc3 {[%clk
0:04:54.1]} 5... Bb7 {[%clk 0:04:53.7]} 6. Bg5 {[%clk 0:04:43.7]} 6... d6 {[%clk
0:04:36.9]} 7. Bxf6 {[%clk 0:04:37.4]} 7... gxf6 {[%clk 0:04:36.8]} 8. Nf3
{[%clk 0:04:34.5]} 8... e6 {[%clk 0:04:31.2]} 9. g3 {[%clk 0:04:33.2]} 9... a6
{[%clk 0:04:28.5]} 10. Bg2 {[%clk 0:04:32.1]} 10... Nd7 {[%clk 0:04:25.7]} 11.
O-O {[%clk 0:04:28.6]} 11... Qc7 {[%clk 0:04:25.1]} 12. b3 {[%clk 0:04:26.9]}
12... h5 {[%clk 0:04:17.4]} 13. h4 {[%clk 0:04:23.5]} 13... f5 {[%clk 0:04:15]}
14. Rc1 {[%clk 0:04:21.1]} 14... Be7 {[%clk 0:03:57.6]} 15. Qd3 {[%clk
0:04:09.8]} 15... f4 {[%clk 0:03:51.4]} 16. gxf4 {[%clk 0:04:05.6]} 16... Rg8
{[%clk 0:03:50.6]} 17. e4 {[%clk 0:03:54.9]} 17... Rg4 {[%clk 0:03:46]} 18. f5
{[%clk 0:03:37.8]} 18... O-O-O {[%clk 0:03:39.5]} 19. b4 {[%clk 0:03:22.1]}
19... Rdg8 {[%clk 0:03:34.4]} 20. Ne1 {[%clk 0:03:17.8]} 20... Ne5 {[%clk
0:03:30]} 21. Qe2 {[%clk 0:03:05.9]} 21... Kb8 {[%clk 0:03:15.6]} 22. f4 {[%clk
0:02:25.7]} 22... Nxc4 {[%clk 0:03:12.9]} 23. Nd1 {[%clk 0:02:23.6]} 23... b5
{[%clk 0:03:10.6]} 24. Nf2 {[%clk 0:01:10.1]} 24... Rxf4 {[%clk 0:02:59.4]} 25.
Ned3 {[%clk 0:01:01.6]} 25... Rxh4 {[%clk 0:02:54.5]} 26. a4 {[%clk 0:00:51.4]}
26... Qb6 {[%clk 0:02:48.4]} 27. axb5 {[%clk 0:00:45.1]} 27... axb5 {[%clk
0:02:48.3]} 28. Rfe1 {[%clk 0:00:34]} 28... Rhg4 {[%clk 0:02:46.5]} 0-1

[Event "Live Chess"]
[Site "Chess.com"]
[Date "2024.06.02"]
[Round "-"]
[White "NebodarMatevich"]
[Black "vincents82"]
[Result "0-1"]
[WhiteElo "1564"]
[BlackElo "2030"]
[TimeControl "300"]
[EndTime "16:32:34 PDT"]
[Termination "vincents82 won by resignation"]

1. e4 {[%clk 0:04:59.2]} 1... d5 {[%clk 0:04:58.9]} 2. exd5 {[%clk 0:04:58.4]}
2... Qxd5 {[%clk 0:04:53.2]} 3. Nf3 {[%clk 0:04:57.7]} 3... Bg4 {[%clk
0:04:51.9]} 4. Be2 {[%clk 0:04:56.2]} 4... Nc6 {[%clk 0:04:51]} 5. c4 {[%clk
0:04:55.3]} 5... Qf5 {[%clk 0:04:46.1]} 6. d4 {[%clk 0:04:50.8]} 6... O-O-O
{[%clk 0:04:45.1]} 7. Nc3 {[%clk 0:04:50.2]} 7... Bxf3 {[%clk 0:04:41.5]} 8.
Bxf3 {[%clk 0:04:48.1]} 8... Nxd4 {[%clk 0:04:40.9]} 9. Be4 {[%clk 0:04:32.8]}
9... Qe5 {[%clk 0:04:35.5]} 10. Qf3 {[%clk 0:04:29.4]} 10... Nxf3+ {[%clk
0:04:34]} 0-1